bitfinex-derivatives/quotes_SOLF0:USTF0_20250428
["timestamp","ask_amount","ask_price","bid_price","bid_amount"]
[1745841683088,369.7786,151.58,151.41,12.5715]
[1745841683387,6.6,151.45,151.41,5.9702]
[1745841683583,6.6,151.45,151.42,6.6008]
[1745841683990,6.5995,151.46,151.41,5.9702]
[1745841684691,6.5999,151.45,151.41,5.9702]
[1745841684886,14.0,151.45,151.41,5.9702]
[1745841685489,6.5992,151.47,151.41,5.9702]
[1745841685686,19.81,151.53,151.36,8.20566098]
[1745841685891,19.81,151.44,151.21,39.88295766]
[1745841686091,19.81,151.44,151.23,4.1403]
[1745841686289,19.81,151.42,151.23,4.1403]
[1745841686491,19.81,151.4,151.23,4.1403]
[1745841686792,19.81,151.4,151.24,6.6087]
[1745841687091,19.81,151.4,151.23,4.1403]
[1745841688195,494.83,151.41,151.23,4.1403]
[1745841688391,33.81,151.39,151.27,6.6076]
[1745841688591,1.9725,151.38,151.27,6.6076]
[1745841688894,6.6054,151.33,151.27,6.6076]
[1745841689091,1.9725,151.38,151.23,4.1403]
[1745841689486,6.6047,151.34,151.23,4.1403]
[1745841690195,6.6047,151.34,151.29,6.6065]
[1745841690394,6.6047,151.34,151.23,4.1403]
[1745841690395,6.6052,151.33,151.23,4.1403]
[1745841690695,1.9725,151.38,151.23,4.1403]
[1745841690995,6.6056,151.32,151.23,4.1403]
[1745841691195,6.6056,151.32,151.26,6.6078]
[1745841691394,1.9725,151.38,151.23,4.1403]
[1745841691695,6.6061,151.31,151.26,6.6078]
[1745841691995,6.6063,151.31,151.26,6.6078]
[1745841692199,1.9725,151.38,151.23,4.1403]
[1745841692494,494.83,151.41,151.23,4.1403]
[1745841692689,494.83,151.41,151.29,6.6065]
[1745841693096,494.83,151.41,151.23,4.1403]
[1745841693590,6.6049,151.34,151.23,4.1403]
[1745841693791,19.81,151.39,151.28,6.6069]
[1745841693991,19.81,151.39,151.23,4.1403]
[1745841694290,494.83,151.41,151.31,6.6059]
[1745841694489,475.02,151.41,151.23,4.1403]
[1745841694794,6.6032,151.38,151.23,4.1403]
[1745841696496,6.6032,151.38,151.32,6.6051]
[1745841696695,6.6032,151.38,151.33,2.0381]
[1745841697699,6.6034,151.37,151.33,8.6431]
[1745841698198,6.6034,151.37,151.33,2.0381]
[1745841698494,6.6038,151.36,151.33,2.0381]
[1745841698794,14.0,151.41,151.33,2.0381]
[1745841699196,14.0,151.41,151.26,475.44]
[1745841699401,14.0,151.41,151.27,1.943]
[1745841700198,14.0,151.41,151.28,6.6072]
[1745841700397,14.0,151.41,151.27,1.943]
[1745841700694,6.6034,151.37,151.27,1.943]
[1745841700896,14.0,151.41,151.27,1.943]
[1745841701496,33.81,151.41,151.27,1.943]
[1745841701697,19.81,151.41,151.27,1.943]
[1745841701898,19.81,151.41,151.27,8.5507]
[1745841702198,19.81,151.41,151.27,1.943]
[1745841702398,6.6067,151.3,151.27,1.943]
[1745841702599,19.81,151.39,151.27,1.943]
[1745841702899,6.607,151.29,151.27,1.943]
[1745841703401,19.81,151.39,151.27,1.943]
[1745841703602,13.2041,151.4,151.27,1.943]
[1745841703798,366.9496,151.42,151.27,1.943]
[1745841703998,6.605,151.34,151.27,1.943]
[1745841704700,20.605,151.34,151.3,6.6059]
[1745841704997,386.7596,151.42,151.27,1.943]
[1745841705598,386.7596,151.42,151.28,6.607]
[1745841705904,6.6058,151.32,151.28,6.607]
[1745841706202,6.6058,151.32,151.29,6.6066]
[1745841706504,386.7596,151.42,151.27,1.943]
[1745841706701,386.7596,151.42,151.3,6.606]
[1745841706907,386.7596,151.42,151.27,1.943]
[1745841707104,6.605,151.34,151.27,1.943]
[1745841707403,386.7596,151.42,151.3,6.6061]
[1745841707801,14.0,151.41,151.27,1.943]
[1745841708603,6.605,151.34,151.27,1.943]
[1745841709004,14.0,151.41,151.32,6.6054]
[1745841709204,14.0,151.41,151.27,1.943]
[1745841709705,6.6036,151.37,151.27,1.943]
[1745841709905,14.0,151.41,151.27,1.943]
[1745841710203,14.0,151.41,151.35,6.6042]
[1745841710399,6.6031,151.38,151.27,1.943]
[1745841710595,6.6031,151.38,151.35,6.604]
[1745841710804,14.0,151.41,151.35,6.604]
[1745841711006,6.6028,151.39,151.27,1.943]
[1745841711206,14.0,151.41,151.28,475.56]
[1745841711504,20.6018,151.41,151.28,475.56]
[1745841711704,20.6018,151.41,151.29,1.887]
[1745841712107,6.6022,151.4,151.29,1.887]
[1745841712406,14.0,151.41,151.3,1.9345]
[1745841712703,20.602,151.41,151.37,6.6032]
[1745841713005,20.602,151.41,151.3,1.9345]
[1745841713203,6.602,151.41,151.3,1.9345]
[1745841714304,6.602,151.41,151.37,6.603]
[1745841714906,6.602,151.41,151.38,6.6029]
[1745841715107,6.602,151.4,151.3,1.9345]
[1745841715306,1.0451,151.45,151.3,1.9345]
[1745841715602,6.601,151.43,151.3,1.9345]
[1745841715803,6.601,151.43,151.3,15.1471]
[1745841716104,20.601,151.43,151.39,6.6022]
[1745841717005,14.0,151.43,151.3,15.1471]
[1745841717806,6.6021,151.4,151.36,6.6035]
[1745841718907,6.6025,151.39,151.36,6.6035]
[1745841719207,6.6025,151.39,151.3,1.9345]
[1745841719808,6.6022,151.4,151.3,1.9345]
[1745841720808,14.0,151.43,151.36,6.6034]
[1745841721007,14.0,151.43,151.3,1.9345]
[1745841721206,6.6017,151.41,151.3,1.9345]
[1745841721502,6.6017,151.41,151.37,6.6029]
[1745841721701,6.6011,151.42,151.3,1.9345]
[1745841721903,14.0,151.43,151.3,1.9345]
[1745841722204,14.0,151.43,151.36,6.6034]
[1745841722713,14.0,151.43,151.35,6.6041]
[1745841723210,14.0,151.43,151.33,6.6048]
[1745841723411,6.604,151.36,151.33,6.6048]
[1745841723611,1.042,151.42,151.29,1.887]
[1745841723812,1.042,151.42,151.32,6.6052]
[1745841724012,1.042,151.42,151.29,1.887]
[1745841724311,1.042,151.42,151.33,6.6048]
[1745841724615,1.042,151.42,151.18,475.42]
[1745841724809,19.81,151.4,151.25,6.6084]
[1745841725013,1.9979,151.39,151.25,6.6084]
[1745841725210,6.6071,151.29,151.25,6.6084]
[1745841725513,1.9979,151.39,151.22,1.9058]
[1745841726015,1.9979,151.39,151.26,6.6078]
[1745841726220,6.606,151.31,151.22,1.9058]
[1745841726514,6.606,151.31,151.27,6.6074]
[1745841726815,1.9979,151.39,151.22,1.9058]
[1745841727217,6.6054,151.33,151.22,1.9058]
[1745841727415,1.9979,151.39,151.22,1.9058]
[1745841727814,6.6053,151.33,151.22,1.9058]
[1745841728114,14.0,151.38,151.27,6.6074]
[1745841728317,14.0,151.38,151.22,1.9058]
[1745841729218,14.0,151.38,151.31,6.6056]
[1745841730318,14.0,151.38,151.32,6.6054]
[1745841730515,14.0,151.38,151.22,1.9058]
[1745841731116,14.0,151.38,151.23,1.21356793]
[1745841731414,6.6048,151.34,151.22,1.9058]
[1745841731615,6.6048,151.34,151.23,1.21361992]
[1745841731815,6.6048,151.34,151.24,1.8897]
[1745841732217,14.0,151.38,151.24,1.8897]
[1745841732218,6.6053,151.33,151.24,1.8897]
[1745841732524,14.0,151.38,151.29,6.6064]
[1745841732714,6.6047,151.34,151.24,1.8897]
[1745841733022,14.0,151.38,151.28,6.6069]
[1745841733222,6.6054,151.33,151.28,6.6069]
[1745841734026,6.6047,151.34,151.29,6.6067]
[1745841734321,14.0,151.38,151.24,1.8897]
[1745841734521,6.6073,151.28,151.24,1.8897]
[1745841734719,6.6073,151.28,151.22,1.9058]
[1745841735027,6.6077,151.27,151.23,6.6093]
[1745841735226,6.6077,151.27,151.22,1.9058]
[1745841735528,14.0,151.38,151.19,2.0416]
[1745841735724,477.5979,151.39,151.19,4.118]
[1745841736126,6.6067,151.3,151.19,4.118]
[1745841736729,477.5979,151.39,151.25,6.6082]
[1745841737028,477.5979,151.39,151.19,4.118]
[1745841737828,6.6073,151.28,151.22,6.6096]
[1745841738031,477.5979,151.39,151.19,4.118]
[1745841738330,477.5979,151.39,151.21,6.6102]
[1745841738530,477.5979,151.39,151.15,1.977]
[1745841738731,14.0,151.3,151.15,3.9662]
[1745841738934,3.0778,151.29,151.2,6.6104]
[1745841739135,3.0778,151.29,151.15,3.9662]
[1745841740034,6.6083,151.26,151.22,6.6098]
[1745841740230,6.6083,151.26,151.15,3.9662]
[1745841740532,3.0778,151.29,151.15,3.9662]
[1745841740733,3.0778,151.29,151.2,6.6107]
[1745841740931,3.0778,151.29,151.15,3.9662]
[1745841741127,6.609,151.25,151.2,6.6105]
[1745841741332,3.0778,151.29,151.15,3.9662]
[1745841741737,6.6098,151.23,151.18,6.6113]
[1745841742031,3.0778,151.29,151.15,3.9662]
[1745841742233,14.0,151.23,151.19,6.6108]
[1745841742629,3.0778,151.29,151.19,6.6108]
[1745841742933,3.0778,151.29,151.18,6.6115]
[1745841743129,3.0778,151.29,151.15,1.9892]
[1745841743335,6.6106,151.21,151.15,1.9892]
[1745841743531,3.0778,151.29,151.17,6.6116]
[1745841743733,3.0778,151.29,151.15,1.9892]
[1745841743936,3.0778,151.29,151.19,6.6109]
[1745841744238,6.6097,151.23,151.19,6.6109]
[1745841744537,3.0778,151.29,151.18,6.6114]
[1745841744837,3.0778,151.29,151.16,1.9886]
[1745841745136,3.0778,151.29,151.18,6.6113]
[1745841745533,6.6099,151.22,151.18,6.6113]
[1745841745738,14.0,151.28,151.19,6.611]
[1745841746038,6.6092,151.24,151.19,6.611]
[1745841746536,14.0,151.28,151.18,6.6114]
[1745841746937,14.0,151.28,151.16,1.9886]
[1745841747133,6.6099,151.22,151.18,6.6113]
[1745841747432,14.0,151.28,151.16,1.9886]
[1745841747738,6.6097,151.23,151.19,6.611]
[1745841748434,6.6099,151.22,151.19,6.611]
[1745841748738,14.0,151.28,151.16,1.9886]
[1745841749040,6.6074,151.28,151.17,2.0074]
[1745841749740,6.6074,151.28,151.24,6.6087]
[1745841751036,1.9603,151.34,151.24,6.6087]
[1745841751438,1.9603,151.34,151.17,2.0074]
[1745841751935,14.0,151.33,151.24,6.6087]
[1745841752138,6.6072,151.29,151.17,2.0074]
[1745841752333,14.0,151.33,151.26,6.6079]
[1745841752537,6.6065,151.3,151.26,6.6079]
[1745841753541,14.0,151.33,151.27,6.6074]
[1745841753744,14.0,151.33,151.17,2.0074]
[1745841754036,14.0,151.33,151.18,1.21392489]
[1745841754246,6.6057,151.32,151.28,6.6072]
[1745841754440,14.0,151.33,151.19,475.76]
[1745841754639,6.6069,151.29,151.25,6.6085]
[1745841754837,14.0,151.33,151.19,475.76]
[1745841755143,6.6069,151.29,151.25,6.6084]
[1745841755439,14.0,151.33,151.17,2.0074]
[1745841755939,1.0451,151.32,151.21,6.6099]
[1745841756435,1.0451,151.32,151.17,2.0074]
[1745841756642,6.6084,151.26,151.22,6.6098]
[1745841757645,6.6086,151.25,151.21,6.6101]
[1745841757847,6.6086,151.25,151.17,2.0074]
[1745841758245,6.6086,151.25,151.21,6.6101]
[1745841758649,6.6082,151.26,151.22,6.6097]
[1745841758845,6.6082,151.26,151.17,2.0074]
[1745841759148,6.6082,151.26,151.21,6.6099]
[1745841759552,6.6087,151.25,151.21,6.6099]
[1745841759749,1.0451,151.32,151.17,2.0074]
[1745841760149,6.6084,151.26,151.22,6.6098]
[1745841760350,1.0451,151.32,151.17,2.0074]
[1745841760650,6.608,151.27,151.22,6.6096]
[1745841761049,1.0451,151.32,151.22,6.6096]
[1745841761250,1.0451,151.32,151.17,2.0074]
[1745841761942,1.0451,151.32,151.2,6.6106]
[1745841762250,6.6094,151.24,151.2,6.6106]
[1745841762442,1.0451,151.32,151.2,6.6106]
[1745841763349,6.6092,151.24,151.2,6.6106]
[1745841764152,1.0451,151.32,151.2,6.6106]
[1745841764354,1.0451,151.32,151.17,2.0074]
[1745841764550,6.6089,151.25,151.17,2.0074]
[1745841764754,1.0451,151.32,151.17,2.0074]
[1745841765752,6.6097,151.23,151.17,2.0074]
[1745841766153,1.0451,151.32,151.17,2.0074]
[1745841766655,6.6096,151.23,151.17,2.0074]
[1745841767358,6.6096,151.23,151.2,6.6105]
[1745841767658,6.6099,151.22,151.2,6.6105]
[1745841768360,6.6096,151.23,151.2,6.6105]
[1745841768659,13.2122,151.31,151.17,2.0074]
[1745841769060,6.61,151.22,151.17,2.0074]
[1745841769361,6.61,151.22,151.19,6.6109]
[1745841770262,6.6103,151.21,151.18,6.6114]
[1745841770661,19.81,151.29,151.15,1.9892]
[1745841770861,6.6132,151.15,151.12,6.6141]
[1745841771861,6.6127,151.16,151.13,6.6138]
[1745841772061,1.047,151.22,151.05,3.12599337]
[1745841772362,6.6123,151.17,151.06,14.44847619]
[1745841772661,1.8927,151.21,151.06,13.2335]
[1745841772857,6.6113,151.19,151.14,6.6131]
[1745841773058,1.8927,151.21,151.07,13.2328]
[1745841773462,6.6115,151.19,151.15,6.6128]
[1745841773756,19.8092,151.38,151.05,3.12599337]
[1745841773962,6.6092,151.24,151.2,6.6107]
[1745841774162,1.9119,151.27,151.06,19.8507]
[1745841774357,1.9119,151.27,151.07,1.21466358]
[1745841774556,6.6095,151.23,151.2,6.6105]
[1745841774764,1.9119,151.27,151.07,19.8485]
[1745841775060,6.6092,151.24,151.21,6.6101]
[1745841776757,14.0,151.24,151.21,6.6101]
[1745841777663,20.6091,151.24,151.21,6.6101]
[1745841778161,6.6094,151.23,151.21,6.6101]
[1745841778363,14.0,151.24,151.2,6.6105]
[1745841778862,14.0,151.24,151.21,6.6103]
[1745841779363,20.6092,151.24,151.21,6.6103]
[1745841779863,20.6092,151.24,151.22,6.6098]
[1745841780160,6.6092,151.24,151.14,5.8958]
[1745841780362,6.6092,151.24,151.21,6.6101]
[1745841781463,1.9119,151.27,151.15,13.2258]
[1745841781765,7.53188,151.31,151.14,5.8958]
[1745841781955,6.6066,151.3,151.15,1.21421497]
[1745841782259,7.53188,151.31,151.15,1.21421497]
[1745841782563,6.6066,151.3,151.17,13.2234]
[1745841782959,14.0,151.29,151.17,13.2234]
[1745841783261,14.0,151.29,151.26,6.6078]
[1745841783767,20.6068,151.29,151.26,6.6078]
[1745841784162,14.0,151.29,151.27,6.6075]
[1745841784367,7.53188,151.31,151.17,13.2234]
[1745841784566,7.53188,151.31,151.18,1.21408526]
[1745841784862,6.6066,151.3,151.26,6.6081]
[1745841785361,7.53188,151.31,151.26,6.6081]
[1745841785558,6.6065,151.3,151.26,6.6081]
[1745841785764,7.53188,151.31,151.27,6.6076]
[1745841785962,7.53188,151.31,151.17,13.2234]
[1745841786165,7.53188,151.31,151.18,13.2232]
[1745841786864,7.53188,151.31,151.29,6.6067]
[1745841787270,21.53188,151.31,151.29,6.6067]
[1745841788071,21.53188,151.31,151.18,13.2232]
[1745841788568,6.6066,151.3,151.26,6.6081]
[1745841788770,6.6066,151.3,151.18,13.2232]
[1745841788966,6.6066,151.3,151.27,6.6076]
[1745841789264,7.53188,151.31,151.19,475.84]
[1745841789567,7.53188,151.31,151.2,20.47757566]
[1745841789771,7.53188,151.31,151.2,19.2638]
[1745841789968,7.53188,151.31,151.21,1.21379376]
[1745841790670,7.53188,151.31,151.25,6.6084]
[1745841790865,7.53188,151.31,151.2,6.0427]
[1745841791470,6.6071,151.29,151.2,6.0427]
[1745841791772,7.53188,151.31,151.2,6.0427]
[1745841791966,7.53188,151.31,151.28,6.6071]
[1745841792266,21.53188,151.31,151.2,6.0427]
[1745841792468,28.13808,151.31,151.27,6.6076]
[1745841792670,21.53188,151.31,151.2,6.0427]
[1745841792966,6.6074,151.28,151.23,6.6093]
[1745841793173,21.53188,151.31,151.23,6.6093]
[1745841793464,21.53188,151.31,151.2,6.0427]
[1745841793676,6.6075,151.28,151.24,6.6087]
[1745841794572,21.53188,151.31,151.2,6.0427]
[1745841794770,2.0143,151.3,151.2,6.0427]
[1745841796073,6.6088,151.25,151.22,6.6097]
[1745841796267,2.0143,151.3,151.2,6.0427]
[1745841796972,2.0143,151.3,151.11,475.78]
[1745841797268,2.0143,151.3,151.13,5.9359]
[1745841797671,2.0143,151.3,151.19,6.6111]
[1745841798172,2.0143,151.3,151.19,6.6109]
[1745841798373,19.81,151.28,151.13,5.9359]
[1745841798765,19.81,151.28,151.16,6.612]
[1745841798967,33.0246,151.28,151.13,5.9359]
[1745841799172,6.6107,151.21,151.13,5.9359]
[1745841799575,33.0246,151.28,151.13,5.9359]
[1745841799770,2.0143,151.3,151.13,5.9359]
[1745841799975,14.0,151.27,151.13,5.9359]
[1745841800277,6.6099,151.22,151.19,6.611]
[1745841800676,14.0,151.27,151.13,5.9359]
[1745841800874,6.6097,151.23,151.13,5.9359]
[1745841801378,6.6095,151.23,151.2,6.6106]
[1745841801577,6.6095,151.23,151.13,5.9359]
[1745841801975,6.6099,151.22,151.18,6.6112]
[1745841802679,14.0,151.27,151.13,5.9359]
[1745841803071,6.6115,151.19,151.15,6.6127]
[1745841803275,1.0441,151.26,151.13,5.9359]
[1745841803579,6.6101,151.22,151.13,5.9359]
[1745841803777,14.0,151.27,151.13,5.9359]
[1745841804275,6.6099,151.22,151.13,5.9359]
[1745841804677,14.0,151.27,151.19,6.6109]
[1745841804878,14.0,151.27,151.13,5.9359]
[1745841805177,33.83,151.27,151.04,13.2349]
[1745841805380,33.83,151.27,151.1,1.9377]
[1745841805579,33.83,151.27,151.11,4.1091]
[1745841805778,1.0441,151.26,151.11,4.1091]
[1745841806385,6.6116,151.18,151.14,6.6131]
[1745841806585,1.0441,151.26,151.14,6.6131]
[1745841806983,6.6114,151.19,151.11,4.1091]
[1745841807175,1.0441,151.26,151.11,4.1091]
[1745841807581,6.6103,151.21,151.11,4.1091]
[1745841807982,13.2139,151.29,151.11,4.1091]
[1745841808184,6.6101,151.22,151.11,4.1091]
[1745841808982,6.6096,151.23,151.11,4.1091]
[1745841809880,6.6099,151.22,151.11,4.1091]
[1745841810183,14.0,151.27,151.16,6.6123]
[1745841810385,14.0,151.27,151.11,4.1091]
[1745841810883,6.6109,151.2,151.16,6.6122]
[1745841811083,14.0,151.27,151.11,4.1091]
[1745841811581,6.6106,151.21,151.17,6.6119]
[1745841811776,6.6106,151.21,151.11,4.1091]
[1745841812378,14.0,151.27,151.11,4.1091]
[1745841812581,14.0,151.27,151.16,6.612]
[1745841812878,14.0,151.27,151.11,4.1091]
[1745841813183,6.6108,151.2,151.16,6.6121]
[1745841813485,6.6108,151.2,151.11,4.1091]
[1745841813880,6.6108,151.2,151.17,6.6119]
[1745841814284,6.6112,151.19,151.16,6.6123]
[1745841814486,33.83,151.27,151.11,4.1091]
[1745841814881,6.6115,151.19,151.15,6.6127]
[1745841815080,33.83,151.27,151.15,6.6127]
[1745841815284,33.83,151.27,151.11,4.1091]
[1745841815587,33.83,151.27,151.15,6.6126]
[1745841815785,33.83,151.27,151.11,4.1091]
[1745841816286,6.6111,151.2,151.16,6.6122]
[1745841816584,33.83,151.27,151.11,4.1091]
[1745841816779,33.0463,151.26,151.16,6.6125]
[1745841817484,19.83,151.24,151.07,5.9668]
[1745841817686,2.9492,151.23,151.07,5.9668]
[1745841817983,6.6122,151.17,151.07,5.9668]
[1745841818179,6.6122,151.17,151.14,6.6131]
[1745841818377,2.9492,151.23,151.07,4.0679]
[1745841818789,2.9492,151.23,151.12,6.614]
[1745841818985,6.6132,151.15,151.12,6.614]
[1745841819287,19.83,151.21,151.11,6.6144]
[1745841819487,6.6128,151.16,151.07,4.0679]
[1745841819887,13.22,151.22,151.12,6.614]
[1745841820088,6.6129,151.15,151.07,4.0679]
[1745841820288,14.0,151.21,151.07,4.0679]
[1745841820488,14.0,151.21,151.12,6.614]
[1745841820790,14.0,151.21,151.07,4.0679]
[1745841821188,14.0,151.21,151.08,2.0737]
[1745841821388,14.0,151.21,151.15,6.6127]
[1745841821587,6.6119,151.18,151.08,2.0737]
[1745841822395,14.0,151.21,151.08,2.0737]
[1745841822895,6.6116,151.18,151.08,2.0737]
[1745841823194,14.0,151.21,151.08,15.3049]
[1745841823490,20.6107,151.21,151.17,6.6118]
[1745841823690,20.6107,151.21,151.08,2.0737]
[1745841823894,20.6107,151.21,151.09,13.2311]
[1745841824088,6.6107,151.21,151.09,13.2311]
[1745841824390,498.58678,151.31,151.1,1.21475304]
[1745841824591,498.58678,151.31,151.09,1.21475304]
[1745841824788,498.58678,151.31,151.08,2.0737]
[1745841824789,6.6095,151.23,151.1,1.21475304]
[1745841824982,498.58678,151.31,151.11,14.44415304]
[1745841825187,6.6101,151.22,151.18,6.6113]
[1745841825388,6.6101,151.22,151.11,13.2294]
[1745841825796,6.6103,151.21,151.11,13.2294]
[1745841826291,6.6092,151.24,151.11,13.2294]
[1745841826499,2.0153,151.23,151.11,13.2294]
[1745841826996,2.0153,151.23,151.08,2.0737]
[1745841827197,14.0,151.22,151.09,1.21477334]
[1745841827393,6.6111,151.2,151.16,6.6122]
[1745841827594,2.0153,151.23,151.08,2.0737]
[1745841827795,1.0463,151.22,151.08,2.0737]
[1745841828095,1.0463,151.22,151.14,6.6133]
[1745841829094,6.6123,151.17,151.14,6.6133]
[1745841829497,6.6123,151.17,151.15,6.6129]
[1745841829698,1.0463,151.22,151.08,13.2318]
[1745841830206,6.6115,151.19,151.16,6.6125]
[1745841830500,1.0463,151.22,151.08,13.2318]
[1745841830700,6.6119,151.18,151.15,6.6127]
[1745841831096,1.0463,151.22,151.08,13.2318]
[1745841831301,6.6123,151.17,151.14,6.6133]
[1745841831602,1.0463,151.22,151.14,6.6133]
[1745841831802,6.6128,151.16,151.13,6.6134]
[1745841831992,6.6128,151.16,151.08,13.2318]
[1745841832397,6.6128,151.16,151.13,6.6134]
[1745841832804,6.6128,151.16,151.08,13.2318]
[1745841833298,6.6128,151.16,151.07,5.9873]
[1745841833598,1.0463,151.22,151.13,6.6135]
[1745841833902,2.0153,151.23,151.07,5.9873]
[1745841834204,14.0,151.22,151.07,5.9873]
[1745841834405,6.6119,151.18,151.07,5.9873]
[1745841834696,14.0,151.22,151.07,5.9873]
[1745841834903,6.6118,151.18,151.14,6.613]
[1745841835202,6.6118,151.18,151.07,5.9873]
[1745841835405,14.0,151.22,151.16,6.6123]
[1745841836102,14.0,151.22,151.17,6.612]
[1745841836500,6.6106,151.21,151.07,5.9873]
[1745841836799,6.6106,151.21,151.08,1.21473543]
[1745841837105,20.6101,151.22,151.18,6.6113]
[1745841837294,14.0,151.22,151.18,6.6113]
[1745841837901,6.6107,151.21,151.18,6.6113]
[1745841840606,14.0,151.22,151.09,13.2306]
[1745841841105,6.6113,151.19,151.09,13.2306]
[1745841841605,6.6113,151.19,151.16,6.6122]
[1745841841807,14.0,151.22,151.09,13.2306]
[1745841842203,14.0,151.22,151.16,6.6125]
[1745841842608,6.6115,151.19,151.16,6.6125]
[1745841842800,14.0,151.22,151.1,13.2302]
[1745841843006,14.0,151.22,151.07,7.13860763]
[1745841843306,496.50398,151.31,151.08,1.21469651]
[1745841843513,2.0543,151.29,151.08,1.21469651]
[1745841844201,2.0543,151.29,151.08,362.21469651]
[1745841844408,2.0543,151.29,151.09,1.21469651]
[1745841844705,2.0543,151.29,151.1,1.21445238]
[1745841844907,2.0543,151.29,151.11,1.21445238]
[1745841845108,2.0543,151.29,151.09,1.21445238]
[1745841845311,2.0543,151.29,151.1,1.21445238]
[1745841845513,2.0543,151.29,151.11,1.21445238]
[1745841845806,2.0543,151.29,151.12,1.21445238]
[1745841846007,2.0543,151.29,151.13,7.25705238]
[1745841846207,14.0,151.28,151.13,6.0426]
[1745841853416,14.0,151.28,151.14,1.21436686]
[1745841854318,14.0,151.28,151.13,6.0426]
[1745841854514,14.0,151.28,151.14,1.21434619]
[1745841855815,14.0,151.28,151.13,6.0426]
[1745841856016,14.0,151.28,151.14,1.21433082]
[1745841857418,14.0,151.28,151.13,6.0426]
[1745841859914,14.0,151.28,151.14,1.2143537]
[1745841864122,2.0543,151.29,151.14,1.2143537]
[1745841864424,2.0543,151.29,151.14,362.2143537]
[1745841864720,2.0543,151.29,151.15,1.2143537]
[1745841865024,2.0543,151.29,151.19,13.2217]
[1745841865226,2.0543,151.29,151.2,5.8878]
[1745841865523,2.0543,151.29,151.27,6.6075]
[1745841867523,2.0543,151.29,151.26,6.6079]
[1745841868125,2.0543,151.29,151.2,5.8878]
[1745841868624,2.0543,151.29,151.26,6.6077]
[1745841868921,2.0543,151.29,151.2,5.8878]
[1745841869123,2.0543,151.29,151.26,6.6077]
[1745841869424,2.0543,151.29,151.2,5.8878]
[1745841869617,14.0,151.3,151.2,5.8878]
[1745841869925,7.53188,151.31,151.2,5.8878]
[1745841870126,14.13788,151.31,151.2,5.8878]
[1745841870321,14.13788,151.31,151.28,6.6071]
[1745841871322,6.6066,151.3,151.2,5.8878]
[1745841871626,7.53188,151.31,151.2,5.8878]
[1745841871826,7.53188,151.31,151.27,6.6074]
[1745841872222,14.13818,151.31,151.27,6.6074]
[1745841873327,14.13818,151.31,151.28,6.6071]
[1745841874027,14.13818,151.31,151.27,6.6075]
[1745841874324,7.53188,151.31,151.2,5.8878]
[1745841874628,7.53188,151.31,151.25,6.6083]
[1745841874937,6.6073,151.28,151.25,6.6083]
[1745841875924,6.6077,151.27,151.24,6.6089]
[1745841876227,6.6077,151.27,151.2,5.8878]
[1745841876228,7.53188,151.31,151.2,1.9731]
[1745841876419,14.0,151.3,151.2,1.9731]
[1745841876626,14.0,151.3,151.22,6.6096]
[1745841876921,14.0,151.3,151.2,1.9731]
[1745841877124,6.6091,151.24,151.21,6.61]
[1745841877428,1.041,151.29,151.18,475.84]